Workbook

Sheet CC4-Budget
B2: Table 1: Cow-Calf Budget, 500 Cow - 2021 | O2: CCB-CC4-21
B3: Summer on Federal & State Range, Winter Feeding Necessary | L3: No. of Cows: | M3: 500
H5: Total Number
D6: Weight | H6: of Head | J6: Price or | L6: Total | M6: Value or
D7: Each | F7: Unit | H7: or Units | J7: Cost/Unit | L7: Value | M7: Cost/Head | O7: Your Value
C8: GROSS RETURNS | R8: NOTES
C9: Steer Calves | D9: 590 | F9: lbs | H9: 220 | J9: 1.78 | L9: =D9*H9*J9 -> 231044 | M9: =L9/$M$3 -> 462.088 | R9: 500 | S9: Cows
C10: Heifer Calves | D10: 550 | F10: lbs | H10: 125 | J10: 1.73 | L10: =D10*H10*J10 -> 118937.5 | M10: =L10/$M$3 -> 237.875 | R10: 20 | S10: Bulls
C11: Cull Cows | D11: 1450 | F11: lbs | H11: 75 | J11: 0.67 | L11: =D11*H11*J11 -> 72862.5 | M11: =L11/$M$3 -> 145.725 | R11: 10 | S11: Horses
C12: Cull Bulls | D12: 1800 | F12: lbs | H12: 6 | J12: 0.88 | L12: =D12*H12*J12 -> 9504 | M12: =L12/$M$3 -> 19.008 | R12: 0.12 | S12: Cow culling rate
C13: Cull Replacement Heifers | D13: 1000 | F13: lbs | H13: 10 | J13: 1.12 | L13: =D13*H13*J13 -> 11200 | M13: =L13/$M$3 -> 22.4 | R13: 0.02 | S13: Cow death loss
C14: TOTAL GROSS RETURNS | L14: =SUM(L9:L13) -> 443548 | M14: =SUM(M9:M13) -> 887.096 | R14: 0.91 | S14: Calf crop
R15: 0.09 | S15: Heifer culling rate
C16: OPERATING COSTS
C17: Alfalfa Hay | F17: ton | H17: =1107*0.25 -> 276.75 | J17: 180.25 | L17: =H17*J17 -> 49884.1875 | M17: =L17/$M$3 -> 99.768375
C18: Grass Hay | F18: ton | H18: =1107*0.75 -> 830.25 | J18: 145 | L18: =H18*J18 -> 120386.25 | M18: =L18/$M$3 -> 240.7725
C19: Corn Silage | F19: ton | H19: 18 | J19: 50 | L19: =H19*J19 -> 900 | M19: =L19/$M$3 -> 1.8
C20: Protein Supplement | F20: cwt | H20: 459 | J20: 34 | L20: =H20*J20 -> 15606 | M20: =L20/$M$3 -> 31.212
C21: Federal Range | F21: AUM | H21: 2592 | J21: 1.41 | L21: 3654.72 | M21: 7.30944
C22: State Range | F22: AUM | H22: 379 | J22: 8.02 | L22: 3039.58 | M22: 6.07916
C23: Private Range | F23: AUM | H23: 1030 | J23: 21.67 | L23: =H23*J23 -> 22320.1 | M23: 44.6402
C24: Crop Aftermath | F24: AUM | H24: 924 | J24: =17*1.0833 -> 18.4161 | L24: 17016.4764 | M24: 34.0329528
C25: Salt/Mineral | F25: cwt | H25: 108 | J25: 11 | L25: 1188 | M25: 2.376
C26: Veterinary/Medicine | F26: $ | H26: 1 | J26: =Vet!V35 -> 13058.69449 | L26: =H26*J26 -> 13058.69449 | M26: 26.11738898
C27: Freight/Trucking | F27: head | H27: =SUM(H11:H13)+95 -> 186 | J27: 13.75 | L27: 2557.5 | M27: 5.115
C28: Commission | F28: head | H28: =SUM(H11:H13) -> 91 | J28: =(0.03)*(L13+L12+L11)/H28 -> 30.8460989 | L28: =H28*J28 -> 2806.995 | M28: =L28/$M$3 -> 5.61399
C29: Checkoff/Brand Inspection | F29: head | H29: 438 | J29: 2.96 | L29: =H29*J29 -> 1296.48 | M29: =L29/$M$3 -> 2.59296
C30: Hired Labor | F30: hour | H30: 2730 | J30: 18.19 | L30: =H30*J30 -> 49658.7 | M30: =L30/$M$3 -> 99.3174
C31: Owner Labor | F31: hour | H31: 1540 | J31: 31.12 | L31: =H31*J31 -> 47924.8 | M31: =L31/$M$3 -> 95.8496
C32: Machinery (Fuel, Oil, Repair) | F32: $ | H32: 1 | J32: =2700*(1+42.89%) -> 3858.03 | L32: 3858.03 | M32: 7.71606
C33: Vehicles (Fuel, Repair) | F33: $ | H33: 1 | J33: =8600*(1+43.23%) -> 12317.78 | L33: 12317.78 | M33: 24.63556
C34: Equipment (Repair) | F34: $ | H34: 1 | J34: =945*(1+6.37%) -> 1005.1965 | L34: =H34*J34 -> 1005.1965 | M34: 2.010393
C35: Buildings & Improvements (Repair) | F35: $ | H35: 1 | J35: =6300*(1+6.37%) -> 6701.31 | L35: 6701.31 | M35: 13.40262
C36: Interest on Operating Capital | F36: $ | H36: =SUM(L17:L35)*0.25 -> 93795.19997 | J36: 0.05 | L36: 4689.759999 | M36: 9.379519997
C37: TOTAL OPERATING COSTS | L37: =SUM(L17:L36) -> 379870.5599 | M37: 759.7411198
C39: NET RETURNS ABOVE OPERATING COSTS | L39: =L14-L37 -> 63677.44011 | M39: =L39/$M$3 -> 127.3548802
C41: OWNERSHIP COSTS
C42: Capital Recovery:
C43: Purchased Livestock | F43: $ | H43: 1 | J43: =Investment!I28 -> 5313 | L43: =H43*J43 -> 5313 | M43: =L43/$M$3 -> 10.626
C44: Housing & Improvements | F44: $ | H44: 1 | J44: =Investment!I21-Investment!I19-Investment!I18-Investment!I17-Investment!I16-Investment!I15 -> 19544 | L44: =H44*J44 -> 19544 | M44: =L44/$M$3 -> 39.088
C45: Machinery | F45: $ | H45: 1 | J45: =Investment!I39 -> 2709 | L45: 2709 | M45: =L45/$M$3 -> 5.418
C46: Equipment | F46: $ | H46: 1 | J46: =Investment!I15+Investment!I16+Investment!I17+Investment!I18+Investment!I19 -> 1572.5 | L46: 1572.5 | M46: 3.145
C47: Vehicles | F47: $ | H47: 1 | J47: =Investment!I42+Investment!I43 -> 6720 | L47: 6720 | M47: 13.44
C48: Interest on Retained Livestock | F48: $ | H48: =Investment!D35 -> 864000 | J48: 0.0506 | L48: 43718.4 | M48: 87.4368
C49: Taxes & Insurance | F49: $ | H49: 1 | J49: =Investment!H45+Investment!H21 -> 1778.4 | L49: 1778.4 | M49: 3.5568
C50: General Overhead | F50: $ | H50: 1 | J50: 7000 | L50: 7000 | M50: 14
C51: TOTAL OWNERSHIP COSTS | L51: =SUM(L43:L50) -> 88355.3 | M51: 176.7106
C53: TOTAL COSTS | L53: =+L37+L51 -> 468225.8599 | M53: =L53/$M$3 -> 936.4517198
C55: NET RETURNS ABOVE TOTAL COSTS | L55: =+L14-L53 -> -24677.85989 | M55: =L55/$M$3 -> -49.35571978

Sheet Monthly Flows
B2: Table 2: Monthly Summary of Returns and Expenses. | P2: CCB-CC4-21
D3: Jan | E3: Feb | F3: Mar | G3: Apr | H3: May | I3: Jun | J3: Jul | K3: Aug | L3: Sep | M3: Oct | N3: Nov | O3: Dec | P3: Value
B5: Production:
C6: Steer Calves | N6: =P6 -> 231044 | P6: ='CC4-Budget'!L9 -> 231044
C7: Heifer Calves | M7: =P7 -> 118937.5 | P7: ='CC4-Budget'!L10 -> 118937.5
C8: Cull Cows | D8: =P8 -> 72862.5 | P8: ='CC4-Budget'!L11 -> 72862.5
C9: Cull Bulls | M9: =P9 -> 9504 | P9: ='CC4-Budget'!L12 -> 9504
C10: Cull Replacement Heifers | D10: =P10 -> 11200 | N10: =P10 -> 11200 | P10: ='CC4-Budget'!L13 -> 11200
B12: Total Receipts | D12: =SUM(D6:D10) -> 84062.5 | E12: =SUM(E6:E10) -> 0 | F12: 0 | G12: 0 | H12: 0 | I12: 0 | J12: 0 | K12: 0 | L12: 0 | M12: 128441.5 | N12: 242244 | O12: 0 | P12: ='CC4-Budget'!L14 -> 443548
B15: Operating Inputs:
C16: ='CC4-Budget'!C17:D17 -> Alfalfa Hay | D16: =0.26*P16 -> 12969.88875 | E16: =0.24*P16 -> 11972.205 | F16: =0.26*P16 -> 12969.88875 | G16: =0.12*P16 -> 5986.1025 | O16: =0.12*P16 -> 5986.1025 | P16: ='CC4-Budget'!L17 -> 49884.1875
C17: ='CC4-Budget'!C18:D18 -> Grass Hay | D17: =0.26*P17 -> 31300.425 | E17: =0.27*P17 -> 32504.2875 | F17: =0.24*P17 -> 28892.7 | G17: =0.12*P17 -> 14446.35 | O17: =0.11*P17 -> 13242.4875 | P17: ='CC4-Budget'!L18 -> 120386.25
C18: ='CC4-Budget'!C19:D19 -> Corn Silage | F18: =P18*0.6666666 -> 599.99994 | G18: =P18*0.333333 -> 299.9997 | P18: ='CC4-Budget'!L19 -> 900
C19: ='CC4-Budget'!C20:D20 -> Protein Supplement | D19: =$P$19/5 -> 3121.2 | E19: 3121.2 | F19: 3121.2 | G19: 3121.2 | O19: =$P$19/5 -> 3121.2 | P19: ='CC4-Budget'!L20 -> 15606
C20: ='CC4-Budget'!C21:D21 -> Federal Range | E20: =0.12*P20 -> 438.5664 | F20: =0.22*$P$20 -> 804.0384 | G20: =0.22*$P$20 -> 804.0384 | H20: 804.0384 | I20: 804.0384 | P20: ='CC4-Budget'!L21 -> 3654.72
C21: ='CC4-Budget'!C22:D22 -> State Range | G21: =0.04*P21 -> 121.5832 | H21: =0.08*$P$21 -> 243.1664 | I21: =0.08*$P$21 -> 243.1664 | J21: 243.1664 | K21: 243.1664 | L21: =0.32*P21 -> 972.6656 | M21: =0.32*P21 -> 972.6656 | P21: ='CC4-Budget'!L22 -> 3039.58
C22: ='CC4-Budget'!C23:D23 -> Private Range | H22: =0.01*$P$22 -> 223.201 | I22: =0.01*$P$22 -> 223.201 | J22: 223.201 | K22: 223.201 | L22: =0.48*P22 -> 10713.648 | M22: =0.48*P22 -> 10713.648 | P22: ='CC4-Budget'!L23 -> 22320.1
C23: ='CC4-Budget'!C24:D24 -> Crop Aftermath | N23: =P23*0.6666666 -> 11344.31647 | O23: =P23*0.3333333 -> 5672.158233 | P23: ='CC4-Budget'!L24 -> 17016.4764
C24: ='CC4-Budget'!C25:D25 -> Salt/Mineral | D24: =$P$24/12 -> 99 | E24: =$P$24/12 -> 99 | F24: 99 | G24: 99 | H24: 99 | I24: 99 | J24: 99 | K24: 99 | L24: 99 | M24: 99 | N24: 99 | O24: 99 | P24: ='CC4-Budget'!L25 -> 1188
C25: ='CC4-Budget'!C26:D26 -> Veterinary/Medicine | E25: =0.2*P25 -> 2611.738898 | F25: =0.2*P25 -> 2611.738898 | N25: =0.6*P25 -> 7835.216695 | P25: ='CC4-Budget'!L26 -> 13058.69449
C26: ='CC4-Budget'!C27:D27 -> Freight/Trucking | D26: =0.48*P26 -> 1227.6 | N26: =0.52*P26 -> 1329.9 | P26: ='CC4-Budget'!L27 -> 2557.5
C27: ='CC4-Budget'!C28:D28 -> Commission | D27: =0.93*P27 -> 2610.50535 | O27: =0.07*P27 -> 196.48965 | P27: ='CC4-Budget'!L28 -> 2806.995
C28: ='CC4-Budget'!C29:D29 -> Checkoff/Brand Inspection | D28: =0.2*P28 -> 259.296 | M28: =0.8*P28 -> 1037.184 | P28: ='CC4-Budget'!L29 -> 1296.48
C29: ='CC4-Budget'!C30:D30 -> Hired Labor | D29: =0.1*P29 -> 4965.87 | E29: =0.18*P29 -> 8938.566 | F29: =0.18*P29 -> 8938.566 | G29: =0.06*$P$29 -> 2979.522 | H29: 2979.522 | I29: 2979.522 | J29: 2979.522 | K29: 2979.522 | L29: 2979.522 | M29: 2979.522 | N29: 2979.522 | O29: 2979.522 | P29: ='CC4-Budget'!L30 -> 49658.7
C30: ='CC4-Budget'!C31:D31 -> Owner Labor | D30: =$P$30/12 -> 3993.733333 | E30: 3993.733333 | F30: 3993.733333 | G30: 3993.733333 | H30: 3993.733333 | I30: 3993.733333 | J30: 3993.733333 | K30: 3993.733333 | L30: 3993.733333 | M30: 3993.733333 | N30: 3993.733333 | O30: =$P$30/12 -> 3993.733333 | P30: ='CC4-Budget'!L31 -> 47924.8
C31: ='CC4-Budget'!C32:D32 -> Machinery (Fuel, Oil, Repair) | D31: =$P$26/12 -> 213.125 | E31: =$P$26/12 -> 213.125 | F31: 213.125 | G31: 213.125 | H31: 213.125 | I31: 213.125 | J31: 213.125 | K31: 213.125 | L31: 213.125 | M31: 213.125 | N31: 213.125 | O31: 213.125 | P31: ='CC4-Budget'!L32 -> 3858.03
C32: ='CC4-Budget'!C33:D33 -> Vehicles (Fuel, Repair) | D32: =$P$31/12 -> 321.5025 | E32: =$P$31/12 -> 321.5025 | F32: 321.5025 | G32: 321.5025 | H32: 321.5025 | I32: 321.5025 | J32: 321.5025 | K32: 321.5025 | L32: 321.5025 | M32: 321.5025 | N32: 321.5025 | O32: 321.5025 | P32: ='CC4-Budget'!L33 -> 12317.78
C33: ='CC4-Budget'!C34:D34 -> Equipment (Repair) | D33: =$P$32/12 -> 1026.481667 | E33: =$P$32/12 -> 1026.481667 | F33: 1026.481667 | G33: 1026.481667 | H33: 1026.481667 | I33: 1026.481667 | J33: 1026.481667 | K33: 1026.481667 | L33: 1026.481667 | M33: 1026.481667 | N33: 1026.481667 | O33: 1026.481667 | P33: ='CC4-Budget'!L34 -> 1005.1965
C34: ='CC4-Budget'!C35:D35 -> Buildings & Improvements (Repair) | D34: =$P$34/12 -> 558.4425 | E34: =$P$34/12 -> 558.4425 | F34: 558.4425 | G34: 558.4425 | H34: 558.4425 | I34: 558.4425 | J34: 558.4425 | K34: 558.4425 | L34: 558.4425 | M34: 558.4425 | N34: 558.4425 | O34: 558.4425 | P34: ='CC4-Budget'!L35 -> 6701.31
C35: ='CC4-Budget'!C36:D36 -> Interest on Operating Capital | O35: =P35 -> 4689.759999 | P35: ='CC4-Budget'!L36 -> 4689.759999
B37: Total Costs | D37: =SUM(D16:D35) -> 62667.0701 | E37: 65798.8488 | F37: 64150.41699 | G37: 33971.0808 | H37: 10462.2128 | I37: 10462.2128 | J37: 9658.1744 | K37: 9658.1744 | L37: 20878.1206 | M37: 21915.3046 | N37: 29701.24016 | O37: 42100.00488 | P37: =SUM(P16:P35) -> 379870.5599
B40: Net Returns | D40: =D12-D37 -> 21395.4299 | E40: -65798.8488 | F40: -64150.41699 | G40: -33971.0808 | H40: -10462.2128 | I40: -10462.2128 | J40: -9658.1744 | K40: -9658.1744 | L40: -20878.1206 | M40: 106526.1954 | N40: 212542.7598 | O40: -42100.00488 | P40: 63677.44011
B44: Table 3: Monthly Feed Requirements.
B45: Feed | D45: Units | E45: Jan | F45: Feb | G45: Mar | H45: Apr | I45: May | J45: Jun | K45: Jul | L45: Aug | M45: Sep | N45: Oct | O45: Nov | P45: Dec
B47: Alfalfa Hay
C48: Replacement Heifers | D48: ton | E48: 29 | F48: 29 | G48: 29 | H48: 14 | P48: 14
B49: Grass Hay
C50: Cows | D50: ton | E50: 194 | F50: 194 | G50: 194 | H50: 94 | P50: 94
C51: Bulls | D51: ton | E51: 14 | F51: 14 | P51: 7
C52: Horses | D52: ton | E52: 4 | F52: 4 | G52: 4 | H52: 2 | P52: 4
B53: Corn Silage
C54: Bulls | D54: ton | G54: 38 | H54: 19
B55: Federal Range
C56: Cows | D56: AUM | H56: 235 | I56: 470 | J56: 470 | K56: 470 | L56: 470
C57: Replacement Heifers | D57: AUM | H57: 38 | I57: 76 | J57: 76 | K57: 76 | L57: 76
C58: Bulls | D58: AUM | H58: 15 | I58: 30 | J58: 30 | K58: 30 | L58: 30
C59: Horses | D59: AUM
B60: State Range
C61: Cows | D61: AUM | H61: 15 | I61: 30 | J61: 30 | K61: 30 | L61: 30 | M61: 100 | N61: 100
C62: Replacement Heifers | D62: AUM | M62: 15 | N62: 15
C63: Bulls | D63: AUM | M63: 6 | N63: 6
B64: Private Range
C65: Cows | D65: AUM | M65: 400 | N65: 400
C66: Replacement Heifers | D66: AUM | M66: 61 | N66: 61
C67: Bulls | D67: AUM | M67: 24 | N67: 24
C68: Horses | D68: AUM | I68: 10 | J68: 10 | K68: 10 | L68: 10 | M68: 10 | N68: 10
B69: Crop Aftermath
C70: Cows | D70: AUM | O70: 500 | P70: 250
C71: Replacement Heifers | D71: AUM | O71: 76 | P71: 38
C72: Bulls | D72: AUM | O72: 30 | P72: 15
C73: Horses | D73: AUM | O73: 10 | P73: 5
B74: Salt/Mineral | D74: cwt | E74: 9 | F74: 9 | G74: 9 | H74: 9 | I74: 9 | J74: 9 | K74: 9 | L74: 9 | M74: 9 | N74: 9 | O74: 9 | P74: 9
C78: Daily Feed Requirements by Livestock Category (lb fed/head/day)
C79: Livestock Category | D79: Alfalfa or Grass Hay (lb) | F79: Protein Supplement (lb) | H79: Silage (lbs) | I79: No. of Days
C82: Replacement Heifers | D82: 20 | I82: 105
C83: Replacement Heifers | F83: 3 | I83: 180
C84: Cows | D84: 30 | I84: 120
C85: Bulls | D85: 36 | I85: 75
C86: Bulls | D86: 20 | H86: 30 | I86: 60
C87: Horses | D87: 25 | I87: 120

Sheet Investment
B2: Table 4: Investment Summary. | I2: CCB-CC4-21
D3: Total Value | E3: Salvage/Cull Value | F3: Livestock Share | G3: Useful Life | H3: Annual Taxes & Insurance | I3: Annual Capital Recovery | J3: 1
B5: Buildings, Improvements | K5: Interest/Discount Rate
B6: and Equipment | K6: 0.0506
C7: Fencing | D7: 74000 | E7: 0 | F7: 100 | G7: 25 | H7: =D7*0.0036 -> 266.4 | I7: =(D7-E7)*0.071 -> 5254
C8: Working Corrals & Pens | D8: 20000 | E8: 3000 | F8: 100 | G8: 30 | H8: 72 | I8: =(D8-E8)*0.065 -> 1105
C9: Barn | D9: 20000 | E9: 3000 | F9: 100 | G9: 30 | H9: 72 | I9: =(D9-E9)*0.065 -> 1105
C10: Hay Shed | D10: 30000 | E10: 5000 | F10: 100 | G10: 40 | H10: 108 | I10: =(D10-E10)*0.059 -> 1475
C11: Calving Shed | D11: 35000 | E11: 4000 | F11: 100 | G11: 30 | H11: 126 | I11: =(D11-E11)*0.065 -> 2015
C12: Water Developments | D12: 45000 | E12: 0 | F12: 100 | G12: 25 | H12: 162 | I12: =(D12-E12)*0.071 -> 3195
C13: Range Improvements | D13: 40000 | E13: 0 | F13: 100 | G13: 10 | H13: 144 | I13: =(D13-E13)*0.13 -> 5200
C14: Feed Wagon | D14: 2000 | E14: 500 | F14: 100 | G14: 10 | H14: 7.2 | I14: =(D14-E14)*0.13 -> 195
C15: Calf Table | D15: 1500 | E15: 500 | F15: 100 | G15: 10 | H15: 5.4 | I15: =(D15-E15)*0.13 -> 130
C16: Squeeze Chute | D16: 3500 | E16: 1000 | F16: 100 | G16: 10 | H16: 12.6 | I16: =(D16-E16)*0.13 -> 325
C17: Vet Equipment | D17: 1500 | E17: 0 | F17: 100 | G17: 15 | H17: 5.4 | I17: =(D17-E17)*0.097 -> 145.5
C18: Stock Trailer | D18: 5000 | E18: 1000 | F18: 100 | G18: 20 | H18: 18 | I18: =(D18-E18)*0.081 -> 324
C19: Gooseneck Trailer | D19: 12000 | E19: 4000 | F19: 100 | G19: 20 | H19: 43.2 | I19: =(D19-E19)*0.081 -> 648
B21: Total | D21: =SUM(D7:D19) -> 289500 | H21: =SUM(H7:H19) -> 1042.2 | I21: =SUM(I7:I19) -> 21116.5
B24: Purchased Livestock
C25: Horses | D25: =2500*10 -> 25000 | E25: =600*10 -> 6000 | F25: 100 | G25: 10 | I25: =D25*K6 -> 1265 | J25: 2
C26: Bulls | D26: =20*4000 -> 80000 | E26: ='CC4-Budget'!D12*'CC4-Budget'!J12*20 -> 31680 | F26: 100 | G26: 4 | I26: =D26*K6 -> 4048 | J26: 2
B28: Total | D28: =SUM(D25:D26) -> 105000 | I28: =SUM(I25:I26) -> 5313
B31: Retained Livestock
C32: Beef Replacement Heifers | D32: =1200*95 -> 114000 | E32: =95*'CC4-Budget'!D13*'CC4-Budget'!J13 -> 106400 | F32: 100 | I32: =D32*$K$6 -> 5768.4
C33: Beef Cows | D33: =500*1500 -> 750000 | E33: =500*'CC4-Budget'!D11*'CC4-Budget'!J11 -> 485750 | F33: 100 | I33: =D33*$K$6 -> 37950
B35: Total | D35: =SUM(D32:D33) -> 864000 | I35: =SUM(I32:I33) -> 43718.4
B38: Machinery and Vehicles
C39: Tractor Loader | D39: 40000 | E39: 8500 | F39: 100 | G39: 18 | H39: =D39*0.0036 -> 144 | I39: =(D39-E39)*0.086 -> 2709
C40: Tractor 80 hp | D40: 35000 | E40: 7000 | F40: 100 | G40: 18 | H40: =D40*0.0036 -> 126 | I40: =(D40-E40)*0.086 -> 2408
C41: Pickup 1/2 ton | D41: 12000 | E41: 2500 | F41: 100 | G41: 6 | H41: =D41*0.0036 -> 43.2 | I41: =(D41-E41)*0.197 -> 1871.5
C42: Pickup 4X4 3/4 ton | D42: 20000 | E42: 5000 | F42: 100 | G42: 5 | H42: =D42*0.0094 -> 188 | I42: =(D42-E42)*0.231 -> 3465
C43: Pickup 4X4 1 ton | D43: 25000 | E43: 4000 | F43: 100 | G43: 8 | H43: =D43*0.0094 -> 235 | I43: =(D43-E43)*0.155 -> 3255
B45: Total | D45: =SUM(D39:D43) -> 132000 | H45: =SUM(H39:H43) -> 736.2 | I45: =SUM(I39:I43) -> 13708.5
B48: 1 | C48: Annual capital recovery is the method of calculating depreciation and interest recommended by the National Task Force
C49: on Commodity Costs and Returns Measurement Methods.
B50: 2 | C50: Interest on average investment.

Sheet Vet
C3: Veterinary Expenses
J5: Monthly Allocation
A6: Vaccine | D6: Number of Head | E6: Dosage | F6: Price | H6: Units | I6: $/Unit | J6: Jan | K6: Feb | L6: Mar | M6: Apr | N6: May | O6: Jun | P6: Jul | Q6: Aug | R6: Sep | S6: Oct | T6: Nov | U6: Dec | V6: Total
C7: Steer Calves | D7: ='CC4-Budget'!H9 -> 220
A8: Inforce 3 | C8: Respiratory Viral | E8: 50 | F8: 77.49 | H8: dose | I8: =F8/E8 -> 1.5498 | L8: 1 | T8: 1 | V8: =SUM(J8:U8)*I8*$D$7 -> 681.912
A9: Ultrabac 8 | C9: 8 Way | E9: 50 | F9: 42.29 | H9: dose | I9: =F9/E9 -> 0.8458 | L9: 1 | T9: 1 | V9: =SUM(J9:U9)*I9*$D$7 -> 372.152
A10: Ralgro | C10: Implant | E10: 24 | F10: 40.49 | H10: dose | I10: 1.687083333 | L10: 1 | V10: =SUM(J10:U10)*I10*$D$7 -> 371.1583333
C11: Heifer Calves | D11: ='CC4-Budget'!H10 -> 125
A12: Inforce 3 | C12: Respiratory Viral | E12: 50 | F12: 77.49 | H12: dose | I12: 1.5498 | L12: 1 | T12: 1 | V12: =SUM(J12:U12)*I12*$D$11 -> 387.45
A13: Ultrabac 8 | C13: 8 Way | E13: 50 | F13: 42.29 | H13: dose | I13: 0.8458 | L13: 1 | T13: 1 | V13: =SUM(J13:U13)*I13*$D$11 -> 211.45
C14: Bangs | E14: 1 | F14: 4 | H14: dose | I14: 4 | T14: 1 | V14: 500
C15: Cows | D15: ='CC4-Budget'!M3 -> 500
A16: Pyramid 5 | C16: Respiratory Viral | E16: 50 | F16: 65.29 | H16: dose | I16: 1.3058 | L16: 1 | V16: =SUM(J16:U16)*I16*$D$15 -> 652.9
A17: Vira Shield 6 + VL5 | C17: Pregnancy Viral | E17: 50 | F17: 127.29 | H17: dose | I17: 2.5458 | L17: 1 | V17: =SUM(J17:U17)*I17*$D$15 -> 1272.9
A18: Clean-Up 2 | C18: Pour-On | E18: 384 | F18: 432.5 | H18: dose | I18: 1.126302083 | L18: 1 | V18: =SUM(J18:U18)*I18*$D$15 -> 563.1510417
A19: PYthon2 | C19: Fly Tags | E19: 100 | F19: 197.39 | H19: head | I19: 1.9739 | L19: 1 | V19: =SUM(J19:U19)*I19*$D$15 -> 986.95
C20: Preg. Check | E20: 1 | F20: 4 | H20: head | I20: 4 | T20: 1 | V20: =SUM(J20:U20)*I20*$D$15 -> 2000
C21: Replacement Heifers | D21: 85
A22: Pyramid 5 | C22: Respiratory Viral | E22: 50 | F22: 65.29 | H22: dose | I22: 1.3058 | M22: 1 | T22: 1 | V22: =SUM(J22:U22)*I22*$D$21 -> 221.986
A23: Vira Shield 6 + VL5 | C23: Pregnancy Viral | E23: 50 | F23: 127.29 | H23: dose | I23: 2.5458 | M23: 1 | V23: =SUM(J23:U23)*I23*$D$21 -> 216.393
A24: Clean-Up 2 | C24: Pour-On | E24: 384 | F24: 432.5 | H24: dose | I24: 1.126302083 | T24: 1 | V24: 95.73567708
A25: Python 2 | C25: Fly Tags | E25: 100 | F25: 197.39 | H25: head | I25: 1.9739 | M25: 1 | V25: 167.7815
C26: Preg. Check | E26: 1 | F26: 4 | H26: head | I26: 4 | T26: 1 | V26: 340
C27: Bulls | D27: ='CC4-Budget'!R10 -> 20
A28: Pyramid 5 | C28: Respiratory Viral | E28: 50 | F28: 65.29 | H28: dose | I28: 1.3058 | M28: 1 | V28: =SUM(J28:U28)*I28*$D$27 -> 26.116
A29: Ultrabac 8 | C29: 8 Way | E29: 50 | F29: 42.29 | H29: dose | I29: 0.8458 | T29: 1 | V29: =SUM(J29:U29)*I29*$D$27 -> 16.916
A30: Clean-Up 2 | C30: Pour-On | E30: 384 | F30: 432.5 | H30: dose | I30: 1.126302083 | M30: 1 | V30: 22.52604167
C31: Semen/Trich Test | E31: 1 | F31: 65 | H31: head | I31: 65 | M31: 1 | V31: 1300
A32: Python 2 | C32: Fly Tags | E32: 100 | F32: 197.39 | H32: head | I32: 1.9739 | M32: 1 | V32: 39.478
U33: Total | V33: =SUM(V8:V32) -> 10446.95559
V35: =V33*1.25 -> 13058.69449
